fUST/lending_fUST_20250522
["ID","MTS","AMOUNT","RATE_DAILY","PERIOD"]
[361960390,1747909853973,-2557.24,0.00023287,2]
[361960392,1747909853983,-430.0,0.00023287,2]
[361960393,1747909853992,-576.6,0.00023287,2]
[361960396,1747909854002,-430.0,0.00023287,2]
[361960397,1747909854011,-430.0,0.00023287,2]
[361960399,1747909854021,-430.0,0.00023287,2]
[361960401,1747909854030,-430.0,0.00023287,2]
[361960403,1747909854040,-1317.54,0.00023287,2]
[361960406,1747909854050,-644.46,0.00023287,2]
[361960408,1747909854060,-430.0,0.00023287,2]
[361960410,1747909854070,-542.45,0.00023287,2]
[361960412,1747909854079,-855.89,0.00023287,2]
[361960414,1747909854089,-430.0,0.00023287,2]
[361960415,1747909854098,-430.0,0.00023287,2]
[361960417,1747909854107,-430.0,0.00023287,2]
[361960419,1747909854116,-430.0,0.00023287,2]
[361960421,1747909854126,-430.0,0.00023287,2]
[361960423,1747909854136,-430.0,0.00023287,2]
[361960425,1747909854146,-430.0,0.00023287,2]
[361960428,1747909854159,-1023.55,0.00023287,2]
[361960430,1747909854168,-973.79,0.00023287,2]
[361960432,1747909854178,-430.0,0.00023287,2]
[361960434,1747909854187,-534.29,0.00023287,2]
[361960436,1747909854197,-508.61,0.00023287,2]
[361960438,1747909854207,-2349.73,0.00023287,2]
[361960440,1747909854216,-3807.03,0.00023287,2]
[361960442,1747909854225,-445.0,0.00023287,2]
[361960444,1747909854234,-784.72,0.00023287,2]
[361960446,1747909854244,-934.38,0.00023287,2]
[361960448,1747909854253,-1420.53,0.00023287,2]
[361960450,1747909854263,-430.0,0.00023287,2]
[361960452,1747909854272,-430.0,0.00023287,2]
[361960454,1747909854282,-430.0,0.00023287,2]
[361960456,1747909854293,-430.0,0.00023287,2]
[361960458,1747909854303,-544.63,0.00023287,2]
[361960460,1747909854313,-732.09,0.00023287,2]
[361960462,1747909854322,-1194.49,0.00023287,2]
[361960464,1747909854331,-605.16,0.00023287,2]
[361960466,1747909854341,-503.02,0.00023287,2]
[361960468,1747909854350,-430.0,0.00023287,2]
[361960470,1747909854359,-845.95,0.00023287,2]
[361960472,1747909854369,-430.0,0.00023287,2]
[361960474,1747909854378,-229.64451348,0.00023287,2]
[361960475,1747909854387,-430.0,0.00023287,2]
[361960477,1747909854397,-430.0,0.00023287,2]
[361960479,1747909854407,-430.0,0.00023287,2]
[361960482,1747909854416,-474.23,0.00023287,2]
[361960483,1747909854426,-430.0,0.00023287,2]
[361960485,1747909854435,-505.80466812,0.00023399,2]
[361960488,1747909854445,-1232.529116,0.0002352,2]
[361960489,1747909854455,-430.0,0.00023561,2]
[361960492,1747909854464,-430.0,0.00023561,2]
[361960494,1747909854474,-430.0,0.00023561,2]
[361960496,1747909854484,-430.0,0.00023561,2]
[361960498,1747909854494,-430.0,0.00023561,2]
[361960500,1747909854503,-430.0,0.00023561,2]
[361960502,1747909854512,-430.0,0.00023561,2]
[361960504,1747909854522,-430.0,0.00023561,2]
[361960506,1747909854531,-430.0,0.00023561,2]
[361960508,1747909854541,-430.0,0.00023561,2]
[361960510,1747909854551,-430.0,0.00023561,2]
[361960512,1747909854561,-430.0,0.00023561,2]
[361960514,1747909854570,-430.0,0.00023561,2]
[361960516,1747909854580,-262.43011701,0.00023561,2]
[361960518,1747909854589,-430.0,0.00023561,2]
[361960520,1747909854599,-430.0,0.00023561,2]
[361960521,1747909854608,-430.0,0.00023561,2]
[361960522,1747909854618,-430.0,0.00023561,2]
[361960523,1747909854627,-430.0,0.00023561,2]
[361960524,1747909854636,-430.0,0.00023561,2]
[361960525,1747909854646,-373.20413155,0.00023561,2]
[361960526,1747909854663,-430.0,0.00022191,2]
[361960527,1747909854673,-457.89586845,0.00023561,2]
[361960528,1747909854682,-430.0,0.00023561,2]
[361960529,1747909854692,-430.0,0.00023561,2]
[361960530,1747909854705,-509.56670302,0.00023561,2]
[361960531,1747909854714,-565.22,0.00023561,2]
[361960532,1747909854723,-430.0,0.00023561,2]
[361960533,1747909854732,-430.0,0.00023561,2]
[361960534,1747909854742,-430.0,0.00023561,2]
[361960535,1747909854751,-253.41383241,0.00023561,2]
[361960536,1747909854761,-430.0,0.00023561,2]
[361960537,1747909854771,-222.22459368,0.00023561,2]
[361960538,1747909854782,-430.0,0.00023561,2]
[361960539,1747909854791,-676.3,0.00023561,2]
[361960540,1747909854801,-430.0,0.00023561,2]
[361960541,1747909854810,-612.3,0.00023561,2]
[361960542,1747909854820,-655.62,0.00023561,2]
[361960543,1747909854829,-430.0,0.00023561,2]
[361960544,1747909854943,-430.0,0.00023561,2]
[361960545,1747909854953,-430.0,0.00023561,2]
[361960546,1747909854963,-430.0,0.00023561,2]
[361960548,1747909854973,-532.14,0.00023561,2]
[361960549,1747909854983,-430.0,0.00023561,2]
[361960551,1747909854992,-567.86,0.00023561,2]
[361960553,1747909855002,-493.84,0.00023561,2]
[361960555,1747909855012,-3958.86,0.00023561,2]
[361960557,1747909855022,-1521.3,0.00023561,2]
[361960559,1747909855031,-759.19,0.00023561,2]
[361960561,1747909855041,-430.0,0.00023561,2]
[361960563,1747909855050,-430.0,0.00023561,2]
[361960565,1747909855062,-430.0,0.00023561,2]
[361960567,1747909855072,-430.0,0.00023561,2]
[361960569,1747909855082,-1137.19,0.00023561,2]
[361960571,1747909855091,-430.0,0.00023561,2]
[361960573,1747909855101,-613.6,0.00023561,2]
[361960575,1747909855111,-430.0,0.00023561,2]
[361960577,1747909855120,-430.0,0.00023561,2]
[361960579,1747909855129,-220.0,0.00023561,2]
[361960581,1747909855138,-430.0,0.00023561,2]
[361960583,1747909855148,-385.98555304,0.00023561,2]
[361960585,1747909855161,-210.63444696,0.00023561,2]
[361960587,1747909855171,-430.0,0.00023561,2]
[361960590,1747909855181,-430.0,0.00023561,2]
[361960591,1747909855190,-430.0,0.00023561,2]
[361960593,1747909855199,-451.30197914,0.00023561,2]
[361960602,1747909855270,-430.0,0.00021917,2]
[361960604,1747909855279,-500.0,0.00021917,2]
[361960606,1747909855288,-500.0,0.00021917,2]
[361960608,1747909855298,-500.0,0.00021917,2]
[361960610,1747909855309,-500.0,0.00021917,2]
[361960612,1747909855318,-500.0,0.00021917,2]
[361960614,1747909855330,-500.0,0.00021917,2]
[361960616,1747909855339,-430.0,0.00022191,2]
[361960618,1747909855349,-902.71802086,0.00023561,2]
[361960620,1747909855359,-430.0,0.00023561,2]
[361960622,1747909855370,-1502.46,0.00023561,2]
[361960624,1747909855380,-280.12,0.00023561,2]
[361960626,1747909855389,-430.0,0.00023561,2]
[361960628,1747909855399,-430.0,0.00023561,2]
[361960630,1747909855409,-638.77,0.00023561,2]
[361960632,1747909855418,-1686.4234896,0.00023561,2]
[361960636,1747909855441,-5000.0,0.00021698,2]
[361960638,1747909855450,-500.0,0.00021917,2]
[361960640,1747909855459,-870.8165104,0.00023561,2]
[361960642,1747909855469,-430.0,0.00023561,2]
[361960644,1747909855478,-576.6,0.00023561,2]
[361960645,1747909855488,-430.0,0.00023561,2]
[361960647,1747909855498,-430.0,0.00023561,2]
[361960650,1747909855508,-430.0,0.00023561,2]
[361960652,1747909855517,-430.0,0.00023561,2]
[361960654,1747909855527,-1317.54,0.00023561,2]
[361960655,1747909855535,-644.46,0.00023561,2]
[361960657,1747909855544,-430.0,0.00023561,2]
[361960659,1747909855554,-542.45,0.00023561,2]
[361960661,1747909855563,-430.0,0.00023561,2]
[361960663,1747909855573,-855.89,0.00023561,2]
[361960665,1747909855582,-430.0,0.00023561,2]
[361960667,1747909855592,-430.0,0.00023561,2]
[361960669,1747909855601,-430.0,0.00023561,2]
[361960671,1747909855611,-430.0,0.00023561,2]
[361960673,1747909855621,-430.0,0.00023561,2]
[361960675,1747909855631,-430.0,0.00023561,2]
[361960677,1747909855640,-1023.55,0.00023561,2]
[361960679,1747909855651,-973.79,0.00023561,2]
[361960681,1747909855661,-430.0,0.00023561,2]
[361960683,1747909855671,-534.29,0.00023561,2]
[361960685,1747909855681,-508.61,0.00023561,2]
[361960687,1747909855691,-2349.73,0.00023561,2]
[361960689,1747909855703,-3807.03,0.00023561,2]
[361960691,1747909855713,-445.0,0.00023561,2]
[361960693,1747909855723,-784.72,0.00023561,2]
[361960695,1747909855732,-934.38,0.00023561,2]
[361960697,1747909855743,-1420.53,0.00023561,2]
[361960699,1747909855752,-430.0,0.00023561,2]
[361960701,1747909855762,-430.0,0.00023561,2]
[361960703,1747909855772,-430.0,0.00023561,2]
[361960705,1747909855783,-430.0,0.00023561,2]
[361960707,1747909855793,-544.63,0.00023561,2]
[361960709,1747909855802,-732.09,0.00023561,2]
[361960711,1747909855812,-1194.49,0.00023561,2]
[361960713,1747909855822,-605.16,0.00023561,2]
[361960715,1747909855832,-503.02,0.00023561,2]
[361960717,1747909855842,-430.0,0.00023561,2]
[361960719,1747909855852,-845.95,0.00023561,2]
[361960721,1747909855862,-430.0,0.00023561,2]
[361960723,1747909855872,-430.0,0.00023561,2]
[361960725,1747909855882,-430.0,0.00023561,2]
[361960727,1747909855892,-474.23,0.00023561,2]
[361960729,1747909855902,-430.0,0.00023561,2]
[361960731,1747909855913,-500.0,0.00023735,2]
[361960733,1747909855923,-151.0,0.00023797,2]
[361960735,1747909855933,-215.0738,0.00023797,2]
[361960737,1747909855942,-500.0,0.00023834,2]
[361960739,1747909855952,-151.0,0.00023835,7]
[361960741,1747909855963,-151.0,0.00023835,7]
[361960743,1747909855973,-430.0,0.00023835,2]
[361960745,1747909855982,-430.0,0.00023835,2]
[361960747,1747909855992,-550.0,0.00023835,2]
[361960749,1747909856002,-295.719751,0.00023835,7]
[361960751,1747909856013,-430.0,0.00023835,2]
[361960753,1747909856022,-295.719751,0.00023835,7]
[361960755,1747909856033,-430.0,0.00023835,2]
[361960757,1747909856043,-430.0,0.00023835,2]
[361960759,1747909856056,-430.0,0.00023835,2]
[361960761,1747909856067,-430.0,0.00023835,2]
[361960763,1747909856077,-430.0,0.00023835,2]
[361960765,1747909856087,-430.0,0.00023835,2]
[361960767,1747909856098,-430.0,0.00023835,2]
[361960769,1747909856108,-430.0,0.00023835,2]
[361960771,1747909856119,-430.0,0.00023835,2]
[361960773,1747909856129,-430.0,0.00023835,2]
[361960775,1747909856139,-430.0,0.00023835,2]
[361960777,1747909856149,-430.0,0.00023835,2]
[361960779,1747909856160,-430.0,0.00023835,2]
[361960791,1747909856264,-430.0,0.00023835,2]
[361960793,1747909856274,-430.0,0.00023835,2]
[361960795,1747909856283,-831.1,0.00023835,2]
[361960797,1747909856292,-430.0,0.00023835,2]
[361960799,1747909856305,-430.0,0.00023835,2]
[361960801,1747909856315,-565.22,0.00023835,2]
[361960803,1747909856325,-430.0,0.00023835,2]
[361960805,1747909856334,-430.0,0.00023835,2]
[361960807,1747909856344,-430.0,0.00023835,2]
[361960809,1747909856354,-430.0,0.00023835,2]
[361960811,1747909856364,-534.34,0.00023835,2]
[361960813,1747909856374,-676.3,0.00023835,2]
[361960815,1747909856384,-430.0,0.00023835,2]
[361960817,1747909856395,-612.3,0.00023835,2]
[361960819,1747909856405,-655.62,0.00023835,2]
[361960821,1747909856414,-430.0,0.00023835,2]
[361960823,1747909856424,-430.0,0.00023835,2]
[361960825,1747909856434,-471.81,0.00023835,2]
[361960827,1747909856443,-430.0,0.00023835,2]
[361960829,1747909856454,-532.14,0.00023835,2]
[361960831,1747909856465,-430.0,0.00023835,2]
[361960833,1747909856476,-567.86,0.00023835,2]
[361960835,1747909856487,-493.84,0.00023835,2]
[361960837,1747909856497,-2636.90968117,0.00023835,2]
[361960840,1747909856514,-1321.95031883,0.00023835,2]
[361960841,1747909856524,-1521.3,0.00023835,2]
[361960843,1747909856534,-759.19,0.00023835,2]
[361960845,1747909856543,-430.0,0.00023835,2]
[361960848,1747909856553,-430.0,0.00023835,2]
[361960849,1747909856563,-430.0,0.00023835,2]
[361960851,1747909856573,-382.37756681,0.00023835,2]
[361962858,1747909939019,182.070047,0.00013699,2]
[361962863,1747910551591,17000.0,0.00015,3]
[361962865,1747910713120,-156.0,0.00018808,2]
[361962866,1747910845508,-5000.0,0.00018618,2]
[361962867,1747910845530,-266.0,0.00018806,2]
[361962868,1747910914949,-5248.0,0.00018,2]
[361962951,1747911032550,-300.0,0.00017999,2]
[361962953,1747911032560,-300.0,0.00017999,2]
[361962955,1747911032570,-300.0,0.00017999,2]
[361962958,1747911032582,-170.89928978,0.00017999,2]
[361962962,1747911032604,-1029.10071022,0.00017999,2]
[361962964,1747911032614,-300.0,0.00017999,2]
[361962966,1747911032625,-2870.39928478,0.00018,2]
[361962968,1747911032637,-359.3437208,0.00018,2]
[361962976,1747911032710,-10984.03012613,0.00018,2]
[361963032,1747911038538,-300.0,0.00017998,2]
[361963033,1747911038548,-88379.44843189,0.00018,2]
[361963034,1747911038558,-250.0,0.00018006,2]
[361963036,1747911038568,-42.51198051,0.00018806,2]
[361963037,1747911038577,-10000.00000001,0.00018908,7]
[361963039,1747911038587,-500.0,0.00019103,2]
[361963040,1747911038597,-500.0,0.00019103,2]
[361963041,1747911038606,-500.0,0.00019103,2]
[361963042,1747911038616,-360.15583265,0.00019103,2]
[361963043,1747911038626,-500.0,0.00019103,2]
[361963044,1747911038635,-500.0,0.00019103,2]
[361963045,1747911038645,-388.80957142,0.00019103,2]
[361963046,1747911038654,-500.0,0.00019103,2]
[361963047,1747911038664,-500.0,0.00019103,2]
[361963048,1747911038674,-500.0,0.00019103,2]
[361963049,1747911038684,-287.2834008,0.00019103,2]
[361963050,1747911038693,-500.0,0.00019103,2]
[361963051,1747911038705,-500.0,0.00019103,2]
[361963052,1747911038717,-470.44060441,0.00019103,2]
[361963053,1747911038726,-500.0,0.00019103,2]
[361963054,1747911038736,-500.0,0.00019103,2]
[361963055,1747911038747,-500.0,0.00019103,2]
[361963056,1747911038757,-500.0,0.00019103,2]
[361963057,1747911038766,-373.80559126,0.00019103,2]
[361963058,1747911038776,-624.63141787,0.00019103,2]
[361963059,1747911038786,-24900.0,0.00019104,2]
[361963060,1747911038795,-2767.3049082,0.00019403,2]
[361963061,1747911038805,-420.0,0.00019638,2]
[361963062,1747911038814,-420.0,0.00019639,2]
[361963063,1747911038824,-420.0,0.00019639,2]
[361963064,1747911038833,-420.0,0.00019639,2]
[361963065,1747911038846,-1680.0,0.00019735,2]
[361963066,1747911038856,-3371.5423382,0.00019918,2]
[361963067,1747911038866,-170.0,0.0002,2]
[361963068,1747911038875,-304.0,0.0002,2]
[361963069,1747911038884,-325.6,0.0002,2]
[361963070,1747911038894,-500.0,0.0002,2]
[361963071,1747911038903,-182.070047,0.00020187,2]
[361963072,1747911038914,-171.2201968,0.00020285,2]
[361963073,1747911038924,-984.19844381,0.000203,3]
[361963074,1747911039070,-984.19844358,0.000203,3]
[361963075,1747911039082,-984.19844358,0.000203,3]
[361963076,1747911039096,-984.19844358,0.000203,3]
[361963077,1747911039107,-984.19844358,0.000203,3]
[361963078,1747911039120,-984.19844358,0.000203,3]
[361963079,1747911039130,-984.19844358,0.000203,3]
[361963080,1747911039140,-9173.5446812,0.00020334,2]
[361963081,1747911039151,-984.19844358,0.00020348,3]
[361963082,1747911039160,-463.1576437,0.00020546,2]
[361963083,1747911039169,-984.19844358,0.00020555,3]
[361963084,1747911039179,-984.19844358,0.00020762,3]
[361963085,1747911039189,-426.045199,0.0002093,2]
[361963086,1747911039198,-984.19844358,0.00020969,4]
[361963087,1747911039208,-894.64583333,0.00021,3]
[361963088,1747911039217,-12645.25887003,0.00021,3]
[361963089,1747911039227,-984.19844358,0.00021176,4]
[361963090,1747911039236,-984.19844358,0.00021383,5]
[361963091,1747911039245,-587.0,0.00021427,2]
[361963092,1747911039255,-587.0,0.00021428,2]
[361963093,1747911039264,-480.0,0.00021428,2]
[361963094,1747911039274,-587.0,0.00021428,2]
[361963095,1747911039284,-984.19844358,0.0002159,5]
[361963096,1747911039293,-2351.0,0.00021639,2]
[361963097,1747911039303,-984.19844358,0.00021797,6]
[361963098,1747911039312,-169.488,0.0002183,2]
[361963099,1747911039321,-155.0,0.00021916,2]
[361963100,1747911039331,-500.0,0.00021916,2]
[361963101,1747911039343,-500.0,0.00021916,2]
[361963102,1747911039352,-203.24354973,0.00021916,2]
[361963103,1747911039362,-500.0,0.00021916,2]
[361963104,1747911039371,-500.0,0.00021916,2]
[361963105,1747911039381,-500.0,0.00021916,2]
[361963106,1747911039390,-500.0,0.00021916,2]
[361963107,1747911039400,-500.0,0.00021916,2]
[361963108,1747911039409,-500.0,0.00021916,2]
[361963109,1747911039419,-500.0,0.00021916,2]
[361963110,1747911039428,-500.0,0.00021916,2]
[361963111,1747911039437,-500.0,0.00021916,2]
[361963112,1747911039447,-500.0,0.00021916,2]
[361963113,1747911039456,-552.54891402,0.00021916,2]
[361963114,1747911039465,-419.18664804,0.00021916,2]
[361963115,1747911039474,-430.0,0.00021917,2]
[361963116,1747911039483,-400.0,0.00021917,2]
[361963117,1747911039493,-363.4170651,0.00021917,2]
[361963118,1747911039503,-430.0,0.00021917,2]
[361963119,1747911039512,-430.0,0.00021917,2]
[361963120,1747911039521,-430.0,0.00021917,2]
[361963121,1747911039530,-430.0,0.00021917,2]
[361963122,1747911039539,-430.0,0.00021917,2]
[361963123,1747911039548,-430.0,0.00021917,2]
[361963124,1747911039557,-430.0,0.00021917,2]
[361963125,1747911039567,-430.0,0.00021917,2]
[361963126,1747911039577,-400.0,0.00021917,2]
[361963127,1747911039588,-430.0,0.00021917,2]
[361963128,1747911039598,-430.0,0.00021917,2]
[361963129,1747911039608,-430.0,0.00021917,2]
[361963130,1747911039618,-430.0,0.00021917,2]
[361963131,1747911039627,-430.0,0.00021917,2]
[361963132,1747911039637,-430.0,0.00021917,2]
[361963133,1747911039647,-430.0,0.00021917,2]
[361963134,1747911039656,-285.31245619,0.00021917,2]
[361963135,1747911039666,-430.0,0.00021917,2]
[361963136,1747911039675,-430.0,0.00021917,2]
[361963137,1747911039686,-430.0,0.00021917,2]
[361963138,1747911039695,-500.0,0.00021917,2]
[361963139,1747911039704,-420.0,0.00021917,2]
[361963140,1747911039713,-430.0,0.00021917,2]
[361963141,1747911039723,-430.0,0.00021917,2]
[361963142,1747911039732,-430.0,0.00021917,2]
[361963143,1747911039741,-430.0,0.00021917,2]
[361963144,1747911039751,-430.0,0.00021917,2]
[361963145,1747911039761,-430.0,0.00021917,2]
[361963146,1747911039771,-260.0,0.00021917,2]
[361963147,1747911039780,-430.0,0.00021917,2]
[361963148,1747911039790,-430.1701057,0.00021917,2]
[361963149,1747911039800,-450.0,0.00021917,2]
[361963150,1747911039811,-400.60188185,0.00021917,2]
[361963151,1747911039820,-430.0,0.00021917,2]
[361963152,1747911039830,-430.0,0.00021917,2]
[361963153,1747911039841,-450.0,0.00021917,2]
[361963154,1747911039850,-502.84421096,0.00021917,2]
[361963155,1747911039861,-430.0,0.00021917,2]
[361963156,1747911039872,-430.0,0.00021917,2]
[361963157,1747911039882,-430.0,0.00021917,2]
[361963158,1747911039891,-430.0,0.00021917,2]
[361963159,1747911039901,-430.0,0.00021917,2]
[361963160,1747911039911,-430.0,0.00021917,2]
[361963161,1747911039920,-430.0,0.00021917,2]
[361963162,1747911039930,-430.0,0.00021917,2]
[361963163,1747911039939,-400.0,0.00021917,2]
[361963164,1747911039948,-403.12806976,0.00021917,2]
[361963165,1747911039958,-430.0,0.00021917,2]
[361963166,1747911039967,-401.01453441,0.00021917,2]
[361963167,1747911039977,-430.0,0.00021917,2]
[361963168,1747911039987,-430.0,0.00021917,2]
[361963169,1747911039997,-400.0,0.00021917,2]
[361963170,1747911040008,-430.0,0.00021917,2]
[361963171,1747911040017,-430.0,0.00021917,2]
[361963172,1747911040027,-430.0,0.00021917,2]
[361963173,1747911040037,-492.76778243,0.00021917,2]
[361963174,1747911040047,-430.0,0.00021917,2]
[361963175,1747911040057,-430.0,0.00021917,2]
[361963176,1747911040066,-430.0,0.00021917,2]
[361963177,1747911040076,-430.0,0.00021917,2]
[361963178,1747911040086,-430.0,0.00021917,2]
[361963179,1747911040096,-430.0,0.00021917,2]
[361963180,1747911040107,-442.74556982,0.00021917,2]
[361963181,1747911040120,-430.0,0.00021917,2]
[361963182,1747911040130,-400.0,0.00021917,2]
[361963183,1747911040142,-430.0,0.00021917,2]
[361963184,1747911040154,-430.0,0.00021917,2]
[361963185,1747911040163,-430.0,0.00021917,2]
[361963186,1747911040174,-430.0,0.00021917,2]
[361963187,1747911040183,-430.0,0.00021917,2]
[361963188,1747911040195,-450.0,0.00021917,2]
[361963189,1747911040205,-450.0,0.00021917,2]
[361963190,1747911040214,-430.0,0.00021917,2]
[361963192,1747911040224,-430.0,0.00021917,2]
[361963194,1747911040233,-401.83279143,0.00021917,2]
[361963195,1747911040242,-430.0,0.00021917,2]
[361963196,1747911040252,-400.0,0.00021917,2]
[361963197,1747911040261,-400.0,0.00021917,2]
[361963198,1747911040270,-430.0,0.00021917,2]
[361963199,1747911040279,-572.28155178,0.00021917,2]
[361963200,1747911040288,-400.43254673,0.00021917,2]
[361963201,1747911040297,-430.0,0.00021917,2]
[361963202,1747911040308,-430.0,0.00021917,2]
[361963203,1747911040318,-430.0,0.00021917,2]
[361963205,1747911040327,-430.0,0.00021917,2]
[361963206,1747911040338,-213.38724929,0.00021917,2]
[361963207,1747911040348,-430.0,0.00021917,2]
[361963208,1747911040357,-400.60400768,0.00021917,2]
[361963209,1747911040367,-450.0,0.00021917,2]
[361963210,1747911040376,-404.14285129,0.00021917,2]
[361963211,1747911040385,-430.0,0.00021917,2]
[361963212,1747911040395,-400.0,0.00021917,2]
[361963213,1747911040404,-430.0,0.00021917,2]
[361963214,1747911040415,-400.0,0.00021917,2]
[361963215,1747911040424,-430.0,0.00021917,2]
[361963216,1747911040433,-402.25423732,0.00021917,2]
[361963217,1747911040443,-430.0,0.00021917,2]
[361963218,1747911040452,-430.0,0.00021917,2]
[361963219,1747911040461,-450.0,0.00021917,2]
[361963220,1747911040470,-430.0,0.00021917,2]
[361963221,1747911040480,-516.88405826,0.00021917,2]
[361963222,1747911040490,-430.0,0.00021917,2]
[361963223,1747911040499,-430.0,0.00021917,2]
[361963225,1747911040509,-1065.74511609,0.00021917,2]
[361963227,1747911040518,-430.0,0.00021917,2]
[361963228,1747911040528,-430.0,0.00021917,2]
[361963230,1747911040538,-430.0,0.00021917,2]
[361963231,1747911040547,-430.0,0.00021917,2]
[361963233,1747911040556,-430.0,0.00021917,2]
[361963234,1747911040565,-430.0,0.00021917,2]
[361963235,1747911040575,-430.0,0.00021917,2]
[361963236,1747911040584,-450.0,0.00021917,2]
[361963237,1747911040595,-430.0,0.00021917,2]
[361963238,1747911040604,-430.0,0.00021917,2]
[361963239,1747911040613,-430.0,0.00021917,2]
[361963240,1747911040622,-430.0,0.00021917,2]
[361963241,1747911040633,-430.0,0.00021917,2]
[361963242,1747911040642,-430.0,0.00021917,2]
[361963243,1747911040651,-430.0,0.00021917,2]
[361963244,1747911040660,-430.0,0.00021917,2]
[361963245,1747911040669,-430.0,0.00021917,2]
[361963246,1747911040679,-300.0,0.00021917,2]
[361963247,1747911040688,-430.0,0.00021917,2]
[361963248,1747911040698,-450.0,0.00021917,2]
[361963249,1747911040707,-430.0,0.00021917,2]
[361963250,1747911040717,-430.0,0.00021917,2]
[361963251,1747911040726,-430.0,0.00021917,2]
[361963252,1747911040735,-156.49213864,0.00021917,2]
[361963253,1747911040744,-430.0,0.00021917,2]
[361963254,1747911040753,-416.33006213,0.00021917,2]
[361963255,1747911040763,-430.0,0.00021917,2]
[361963256,1747911040772,-430.0,0.00021917,2]
[361963257,1747911040782,-430.0,0.00021917,2]
[361963258,1747911040791,-450.0,0.00021917,2]
[361963259,1747911040801,-430.0,0.00021917,2]
[361963260,1747911040810,-430.0,0.00021917,2]
[361963261,1747911040819,-430.0,0.00021917,2]
[361963262,1747911040829,-430.0,0.00021917,2]
[361963263,1747911040839,-430.0,0.00021917,2]
[361963264,1747911040850,-430.0,0.00021917,2]
[361963265,1747911040859,-430.0,0.00021917,2]
[361963266,1747911040869,-430.0,0.00021917,2]
[361963267,1747911040879,-558.53,0.00021917,2]
[361963268,1747911040888,-430.0,0.00021917,2]
[361963269,1747911040898,-430.0,0.00021917,2]
[361963270,1747911040908,-401.44535979,0.00021917,2]
[361963271,1747911040917,-430.0,0.00021917,2]
[361963272,1747911040926,-430.0,0.00021917,2]
[361963273,1747911040936,-430.0,0.00021917,2]
[361963274,1747911040947,-430.0,0.00021917,2]
[361963275,1747911040956,-430.0,0.00021917,2]
[361963276,1747911040965,-430.0,0.00021917,2]
[361963277,1747911040975,-430.0,0.00021917,2]
[361963278,1747911040985,-430.0,0.00021917,2]
[361963279,1747911040994,-430.0,0.00021917,2]
[361963280,1747911041004,-430.0,0.00021917,2]
[361963281,1747911041013,-370.0,0.00021917,2]
[361963282,1747911041023,-430.0,0.00021917,2]
[361963283,1747911041033,-400.0,0.00021917,2]
[361963284,1747911041042,-430.0,0.00021917,2]
[361963285,1747911041052,-400.0,0.00021917,2]
[361963286,1747911041062,-430.0,0.00021917,2]
[361963287,1747911041072,-173.66318835,0.00021917,2]
[361963288,1747911041082,-450.0,0.00021917,2]
[361963289,1747911041094,-430.0,0.00021917,2]